Cogmind - Beta 16 @@@ ROGUE MODE // 2025.11.20 @ 05:38:28 Player: Thesoulkiller104 Result: Destroyed by CH-96S(R) with Subdweller Laser Performance ------------- Evolutions (0) 0 Regions Visited (3) 600 Robots Destroyed (20) 100 Value Destroyed (614) 614 Prototype IDs (5) 100 Alien Tech Used (0) 0 Bonus (0) 0 TOTAL SCORE: 1414 Bonus ------- None Cogmind --------- Core Integrity 0/250 Matter 226/300 Energy 99/100 System Corruption 0% Temperature Cool (12) Movement Core (50) Location -10/Subcaves Parts ------- > --- POWER (1) -------- (None) > --- PROPULSION (2) --- (None) > --- UTILITY (2) ------ (None) > --- WEAPON (2) ------- (None) > --- INVENTORY (5) ---- Scrap Suit Improved Targeting Computer Peak State ------------ > --- POWER ------------ Light Nuclear Core > --- PROPULSION ------- Aluminum Leg Subdweller Monowheel > --- UTILITY ---------- Experimental Sensor Array Signal Interpreter > --- WEAPON ----------- Autogun Autogun > --- INVENTORY -------- Scrap Suit Improved Targeting Computer Scrap Shield [Rating: 21] Favorites ----------- Power Light Nuclear Core Engine Reinforced Ion Engine Power Core Light Nuclear Core Propulsion Aluminum Leg Leg Aluminum Leg Wheel Subdweller Monowheel Utility Signal Interpreter Device Experimental Sensor Array Storage Small Storage Unit Processor Signal Interpreter Protection Scrap Shield Weapon Autogun Energy Gun Medium Laser Ballistic Gun Autogun Slashing Weapon Mining Claw Build | -11 -10 -10 -10 ------- Run | Yrd Mat Min Sub Slots Evolved . | . . . . Power . | . . . . Propulsion . | . . . . Utility . | . . . . Weapon . | . . . . Parts Attached 23 | 6 12 2 3 Power 3 | 1 1 1 . Engine 2 | 1 1 . . Core 1 | . . 1 . Reactor . | . . . . Propulsion 5 | 2 2 . 1 Treads . | . . . . Leg 4 | 2 2 . . Wheel 1 | . . . 1 Hover . | . . . . Flight . | . . . . Utility 8 | 1 5 1 1 Device 2 | . 1 1 . Storage 2 | 1 1 . . Processor 3 | . 3 . . Hackware . | . . . . Protection 1 | . . . 1 Artifact . | . . . . Weapon 7 | 2 4 . 1 Energy Gun 1 | 1 . . . Energy Cannon . | . . . . Ballistic Gun 5 | 1 3 . 1 Ballistic Cannon . | . . . . Launcher . | . . . . Special Weapon . | . . . . Impact Weapon . | . . . . Slashing Weapon 1 | . 1 . . Piercing Weapon . | . . . . Special Melee Weapon . | . . . . Unidentified Prototypes 1 | . . 1 . Parts Lost 8 | . . . 8 Power 1 | . . . 1 Propulsion 3 | . . . 3 Utility 2 | . . . 2 Weapon 2 | . . . 2 Highest Loss Streak 7 | . . . 7 To Critical Strikes . | . . . . Average Backups 4 | . 6 4 3 Power . | . . . . Propulsion . | . 1 . . Utility 2 | . 2 2 2 Weapon 1 | . 2 2 . Tool/Special . | . . . . Unused Backups 6 | . 2 2 2 Power 1 | . 1 . . Propulsion 1 | . . 1 . Utility 4 | . 1 1 2 Weapon . | . . . . Tool/Special . | . . . . Average Slot Usage (%) 97 | . 97 100 95 Engine 8 | . 14 . . Core 5 | . . 13 13 Leg 26 | . 28 28 20 Device 6 | . . 14 13 Storage 7 | . 13 . . Processor 12 | . 11 14 13 Ballistic Gun 27 | . 27 28 28 Peak Build Rating 21 | 6 12 20 21 Average Rating 13 | 4 10 16 19 On Entrance 9 | . 6 10 20 Avg Prop Armor Cover (%) 8 | . . . 8 Naked Turns . | . . . . Heaviest Build 22 | 14 22 17 12 Greatest Support 20 | 20 20 20 20 Greatest Overweight (x) 1 | . 1 . 1 Average Overweight (x) . | . . . . Largest Inventory Capacity 8 | 8 8 5 5 Average Capacity 6 | 6 7 5 5 Most Carried 8 | . 8 5 5 Average Carried 5 | . 6 4 4 Final Capacity 8 | 8 5 5 5 Final Carried 5 | . 5 5 3 Class Distribution -------------------- 100% | Mutant Dominant Class ---------------- Mutant | -10/Materials Mutant | -10/Mines Mutant | -10/Subcaves Resources | -11 -10 -10 -10 ----------- Run | Yrd Mat Min Sub Matter Collected 766 | 198 309 162 97 Remotely . | . . . . Salvage Created 708 | . 429 95 184 Parts 48 | . 31 4 13 Haulers Intercepted . | . . . . Recyclers Shooed . | . . . . Parts Field Recycled . | . . . . Retrieved Matter . | . . . . Parts Self-Destructed 9 | . . . 9 Prevented . | . . . . Parts Restored . | . . . . Kills | -11 -10 -10 -10 ------- Run | Yrd Mat Min Sub Combat Hostiles Destroyed 16 | . 10 2 4 Guns 16 | . 10 2 4 Classes Destroyed 7 | . 6 . 1 Worker 1 | . 1 . . Recycler 1 | . 1 . . Operator 1 | . 1 . . Watcher 1 | . 1 . . Swarmer 3 | . 3 . . Grunt 9 | . 7 2 . Subdweller 4 | . . . 4 Best Kill Streak 3 | . 3 2 3 Combat Bots Only 3 | . 3 2 3 Max Kills in Single Turn 1 | . 1 1 1 Gunslinging . | . . . . Exploded . | . . . . Melee . | . . . . Uniques/NPCs Destroyed . | . . . . Combat | -11 -10 -10 -10 -------- Run | Yrd Mat Min Sub Hostile Shots Fired 103 | . 44 6 53 Missed 26 | . 13 1 12 Hits 77 | . 31 5 41 Projectile 77 | . 31 5 41 AOE 2 | . . . 2 Critical Strikes 2 | . . . 2 Damage Taken 1402 | . 381 68 953 Core 253 | . 53 . 200 Absorbed by Shields . | . . . . Core Remaining (%) 100 | 100 . . . Volleys Fired 56 | . 37 4 15 Largest 2 | . 2 2 2 Hottest 46 | . 46 46 46 Shots Fired 110 | . 74 8 28 Gun 110 | . 74 8 28 Cannon . | . . . . Launcher . | . . . . Special . | . . . . Kinetic 110 | . 74 8 28 Thermal . | . . . . Explosive . | . . . . Electromagnetic . | . . . . Robot Hit Streak 17 | . 7 6 17 Robot Miss Streak 4 | . 3 1 4 Penetration Max . | . . . . Secondary Targets 3 | . 1 1 1 Max Gunslinging Chain 1 | . 1 1 1 Shots Hit Robots 70 | . 43 6 21 Core Hits 31 | . 20 4 7 Critical Kills . | . . . . Critical Parts Destroyed . | . . . . Critical Strikes . | . . . . Melee Attacks 1 | . 1 . . Impact . | . . . . Slashing 1 | . 1 . . Piercing . | . . . . Sneak Attacks . | . . . . Combat Hostiles . | . . . . Follow-up Attacks . | . . . . Damage Inflicted 1200 | . 807 82 311 Guns 1113 | . 720 82 311 Cannons . | . . . . Explosions 87 | . 87 . . Melee . | . . . . Ramming . | . . . . Kinetic 1113 | . 720 82 311 Thermal . | . . . . Explosive 87 | . 87 . . Electromagnetic . | . . . . Impact . | . . . . Slashing . | . . . . Piercing . | . . . . Highest Corruption . | . . . . Average Corruption . | . . . . Corruption Purged . | . . . . Corruption Blocked . | . . . . Overload Shots . | . . . . Overflow Damage . | . . . . Projectiles . | . . . . Explosions . | . . . . Melee . | . . . . Knockbacks . | . . . . Impact . | . . . . Kinetic . | . . . . Secondary . | . . . . Self-Inflicted Damage 49 | . 49 . . Shots 1 | . 1 . . Rammed . | . . . . Targets Rammed . | . . . . Kicked . | . . . . Crushed . | . . . . Highest Temperature 76 | . 76 66 . Average Temperature 20 | . 18 35 . Received Heat Transfer 288 | . 132 42 114 Siege Activations . | . . . . Martial Activations . | . . . . Shielding Activations . | . . . . Robots Disrupted . | . . . . Combat Hostiles . | . . . . Robots Corrupted . | . . . . Combat Hostiles . | . . . . Parts Fried . | . . . . Impact Corruptions . | . . . . Robots Melted . | . . . . Combat Hostiles . | . . . . Parts Melted . | . . . . Heat Transferred . | . . . . Parts Sabotaged . | . . . . Parts Stolen . | . . . . Parts Stripped . | . . . . Power Chain Reactions . | . . . . Alert | -11 -10 -10 -10 ------- Run | Yrd Mat Min Sub Maximum Alert Level . | . . . . Low Security (%) 100 | 100 100 100 . Level 1 . | . . . . Level 2 . | . . . . Level 3 . | . . . . Level 4 . | . . . . Level 5 . | . . . . High Security . | . . . . Max Security . | . . . . Peak Influence 165 | . 165 50 . Initial . | . . . . Average 45 | . 64 5 . Influence Increases 488 | . 438 50 . Destroy 0b10 Robot/C 240 | . 200 40 . Destroy 0b10 Robot/NC 20 | . 20 . . Destroy Leader 52 | . 42 10 . Successful Hack 25 | . 25 . . Disable Machine 60 | . 60 . . Destroy Structure 16 | . 16 . . Lose Combat Pursuer 75 | . 75 . . Influence Decreases 488 | . 438 50 . Time Decay 485 | . 435 50 . Lost Ally 3 | . 3 . . Squads Dispatched 2 | . 2 . . Investigation 1 | . 1 . . Extermination . | . . . . Reinforcement 1 | . 1 . . Assault . | . . . . Garrison . | . . . . Intercept . | . . . . Searches Triggered . | . . . . Construction Impeded . | . . . . Haulers Reinforced . | . . . . Active Scanning Responses . | . . . . Cargo Convoy Interrupts . | . . . . Stealth | -11 -10 -10 -10 --------- Run | Yrd Mat Min Sub Distress Signals 3 | . 3 . . Communications Jammed . | . . . . Distress Signals . | . . . . Times Spotted 52 | . 31 2 19 Peak Tracking Total 11 | . 4 2 11 Tactical Retreats 7 | . 5 . 2 Traps | -11 -10 -10 -10 ------- Run | Yrd Mat Min Sub Traps Triggered 1 | . 1 . . Indirectly . | . . . . Trap Hack Attempts . | . . . . Triggered . | . . . . Disarmed . | . . . . Reprogrammed . | . . . . Reused . | . . . . Traps Extracted . | . . . . Installed . | . . . . Triggered . | . . . . Machines | -11 -10 -10 -10 ---------- Run | Yrd Mat Min Sub Machines Disabled 4 | . 4 . . Max in Single Turn 2 | . 2 . . Machines Repaired . | . . . . Machines Dismantled . | . . . . Machines Sabotaged . | . . . . Overloaded Fab Kills . | . . . . Hacking | -11 -10 -10 -10 --------- Run | Yrd Mat Min Sub Machines Accessed 6 | . 5 . 1 Terminals 5 | . 5 . . Fabricators . | . . . . Repair Stations . | . . . . Recycling Units . | . . . . Scanalyzers . | . . . . Garrison Access . | . . . . Total Hacks 23 | . 20 . 3 Successful 16 | . 13 . 3 Failed 6 | . 6 . . Catastrophic . | . . . . Database Lockouts 1 | . 1 . . Manual 14 | . 14 . . Terminals 20 | . 20 . . Fabricators . | . . . . Repair Stations . | . . . . Recycling Units . | . . . . Scanalyzers . | . . . . Garrison Access . | . . . . Terminal Hacks 9 | . 6 . 3 Record 3 | . . . 3 Prototype ID Bank 2 | . 2 . . Level Access Points 1 | . 1 . . Branch Access Points 1 | . 1 . . Surveillance Status 1 | . 1 . . Hauler Manifests 1 | . 1 . . Fabricator Hacks . | . . . . Repair Station Hacks . | . . . . Recycling Unit Hacks . | . . . . Scanalyzer . | . . . . Garrison Access Hacks . | . . . . Unauthorized Hacks 7 | . 7 . . Terminals 7 | . 7 . . Track 1 | . 1 . . Assimilate 1 | . 1 . . Botnet 5 | . 5 . . Fabricators . | . . . . Repair Stations . | . . . . Recycling Units . | . . . . Scanalyzers . | . . . . Garrison Access . | . . . . Data Cores Recovered 1 | . 1 . . Used . | . . . . Hacking Detections 4 | . 4 . . Full Trace Events . | . . . . Feedback Events . | . . . . Feedback Blocked . | . . . . Robot Schematics Acquired . | . . . . Robots Built . | . . . . Authchips . | . . . . Time . | . . . . Total Robot Build Rating . | . . . . Part Schematics Acquired . | . . . . Parts Built . | . . . . Authchips . | . . . . Time . | . . . . Total Part Build Rating . | . . . . Part Studies Acquired . | . . . . Parts Repaired . | . . . . Time . | . . . . Parts Recycled . | . . . . Recycled Matter . | . . . . Retrieved Matter . | . . . . Retrieved Components . | . . . . Parts Scanalyzed . | . . . . Part Schematics Acquired . | . . . . Parts Damaged . | . . . . Bothacking | -11 -10 -10 -10 ------------ Run | Yrd Mat Min Sub Used RIF Installer . | . . . . Robots Hacked . | . . . . Non-combat . | . . . . Combat . | . . . . Robot Hacks Applied . | . . . . Relay Couplers Released . | . . . . Fabnet Peak Effective % . | . . . . Robots Rewired . | . . . . Allies Hacked . | . . . . Hacks Repelled . | . . . . Allies | -11 -10 -10 -10 -------- Run | Yrd Mat Min Sub Total Allies 1 | . 1 . . Largest Group 1 | . 1 . . Highest-Rated Group 10 | . 10 . . Highest-Rated Ally 10 | . 10 . . Total Orders 1 | . 1 . . ROAM 1 | . 1 . . Ally Attacks . | . . . . Total Damage . | . . . . Kills . | . . . . Allies Corrupted . | . . . . Allies Melted . | . . . . Intel | -11 -10 -10 -10 ------- Run | Yrd Mat Min Sub Active Infowar (turns) 880 | . 34 483 363 Sensors 880 | . 34 483 363 Robot Analysis Total . | . . . . Derelict Logs Recovered 1 | . . . 1 Drone Launches . | . . . . Drone Recoveries . | . . . . Exploration | -11 -10 -10 -10 ------------- Run | Yrd Mat Min Sub Turns Passed 2107 | 61 1174 484 388 Spaces Moved 1262 | 45 603 340 274 Core 2 | 2 . . . Treads . | . . . . Legs 1161 | 43 603 340 175 Wheels 99 | . . . 99 Hover . | . . . . Flight . | . . . . Fastest Speed 50 | 50 120 120 110 Average Speed 134 | 116 149 120 120 Slowest Speed 190 | 120 190 120 190 Overloaded Moves . | . . . . Propulsion Burnouts . | . . . . Robots Hopped . | . . . . Potential Cave-ins . | . . . . Cave-ins Triggered . | . . . . Exploration Rate (%) 44 | 3 89 62 23 Regions Visited 3 Branch Regions 2 Pre-discovered Areas 2 | . . 1 1 Known Exits Taken 2 | . 1 1 . Unknown Exits Taken 1 | 1 . . . Scrap Searched 1 | . . 1 . Spaces Dug . | . . . . Terrain Destroyed 22 | . 22 . . Melee . | . . . . Projectile . | . . . . AOE 22 | . 22 . . Terrain Rammed . | . . . . Walls Destroyed . | . . . . Machines Disabled . | . . . . Actions | -11 -10 -10 -10 --------- Run | Yrd Mat Min Sub Total 1590 | 50 817 411 312 Wait 210 | . 137 59 14 Move 1259 | 44 602 339 274 Hop . | . . . . Pick Up 14 | . 10 2 2 Fast Attach 16 | 6 7 2 1 Attach 3 | . 2 . 1 Detach 7 | . 6 . 1 Swap 5 | . 4 . 1 Drop 19 | . 11 5 3 Fire 56 | . 37 4 15 Melee 1 | . 1 . . Ram . | . . . . Kick . | . . . . Crush . | . . . . Escape Stasis . | . . . . Rewire . | . . . . Trap . | . . . . Miscellaneous . | . . . . Route ------- -11/Scrapyard -10/Materials (discovered 5 exits: *Mat x3 / *Min x2) -10/Mines (discovered 2 exits: *Mat / *Sub) -10/Subcaves (discovered 1 exit: Rec) History --------- Turn | Location | Event 2 | -11/Scrapyard | Met Revision 17 5 | -11/Scrapyard | Discovered new exit (range 16) 62 | -11/Scrapyard | Entered Materials 237 | -10/Materials | Discovered new exit (range 13) 302 | -10/Materials | Build established: Mutant 356 | -10/Materials | Identified exit to Mines 356 | -10/Materials | Identified exit to Materials 754 | -10/Materials | Central database locked down 1236 | -10/Materials | Entered Mines 1353 | -10/Mines | Received a Rocket Launcher from a helpful Derelict 1399 | -10/Mines | Found a Scrap Suit stashed away for nefarious purposes 1403 | -10/Mines | Found Scrap Suit 1423 | -10/Mines | Found a damaged Exp. Sensor Array with a note attached 1426 | -10/Mines | Found Prototype Device 1426 | -10/Mines | Identified Exp. Sensor Array 1439 | -10/Mines | Discovered exit to Materials (range 7) 1662 | -10/Mines | Learned location of Storage (-8) 1711 | -10/Mines | Discovered new exit (range 6) 1718 | -10/Mines | Identified exit to Subcaves 1720 | -10/Mines | Entered Subcaves 1721 | -10/Subcaves | Approached by a straggling Scientist 1978 | -10/Subcaves | Ambushed by swarm of Subdwellers 1986 | -10/Subcaves | Visited Clippyterm 1989 | -10/Subcaves | Identified exit to Recycling 2000 | -10/Subcaves | Shifting Twisted Machinery released Mak. Sword 2010 | -10/Subcaves | Shifting Twisted Machinery released Spk. Treads 2100 | -10/Subcaves | Core integrity fell below 50% 2107 | -10/Subcaves | Core integrity fell below 20% 2108 | -10/Subcaves | Destroyed by CH-96S(R) with Subdweller Laser Last Messages --------------- It looks like you're interested in the dark side, V4-D3R would be pleased, though I don't think they're in the habit of teaching apprentices. Mak. Sword falls loose from the Twisted Machinery. 02007_ HR-FUC(c) suffers critical hit (Destroy). 02007_ HR-FUC(c) destroyed. Spk. Treads falls loose from the Twisted Machinery. 02010_ Subatomizers dissect the Sub. Optics. 02076_ Aluminum Leg destroyed. 02083_ Exp. Sensor Array destroyed. 02084_ Lgt. Nuclear Core destroyed. 02084_ Discarded Signal Interpreter. 02093_ CA-6KK(R) destroyed. 02096_ Scrap Shield destroyed. 02097_ Sub. Monowheel destroyed. 02101_ X4-B1G(R) destroyed. 02101_ Switching to secondary target: CH-96S(R). 02104_ CH-96S(R) affixes Scrap Shield Fragment to Scrap Shield. 02104_ Autogun destroyed. 02106_ EN-KGZ(R) destroyed. 02108_ Autogun destroyed. Map ----- +----------------------------------------------------+ | | | | | | | ?????????????????????????????????????????????????? | | ?????????????????????????????????????????????????? | | ?????????????????????????????????????????????????? | | ?????????????????????????????????????????????????? | | ?????????????????????????????????????????????????? | | ?????????????????????????????????????????????????? | | ?????????????????????????????????????????????????? | | ?????????????????????????????????????????????????? | | ?????????????????????????????????????????????????? | | ?????????????????????????????????????????????????? | | ?????????????????????????????????????????????????? | | ?????????????????????????????????????????????????? | | ?????????????????????????????????????????????????? | | ?????????????????????????????????????????????????? | | ????????????????####?????????????????????????????? | | ???????????????## ########??????????????????????? | | ????##?######### ## ####???????????????????? | | ????# ## # ## ##??????????????????? | | ?????# #??????????????????? | | ###??# #### &! #??????????????????? | | #### ## # # ##??#!%*##??????????????????? | | # ####### ##??##%R##???????????????????? | | #?????######???#@=!#????????????????????? | | #??????????????##%R#????????????????????? | | ## ##???????????????#! #???????????????????? | | #########???????????????? "R #???????????????????? | | ????????????????????????? " #???????????????????? | | ?????????????????????????# R???????????????????? | | ????????????????????????? ??????????????????? | | ?????????????????????????# # ?????????????????? | | ?????????????????????????? #????????????????? | | ?????????????????????????? # #????????????????? | | ??????????????????????????" ? "????????????????? | | ??????????????????????????" ? "???????????????? | | ???????????????????????????""?? ???????????????? | | ?????????????????????????????????????????????????? | | ?????????????????????????????????????????????????? | | ?????????????????????????????????????????????????? | | ?????????????????????????????????????????????????? | | ?????????????????????????????????????????????????? | | ?????????????????????????????????????????????????? | | ?????????????????????????????????????????????????? | | ?????????????????????????????????????????????????? | | ?????????????????????????????????????????????????? | | ?????????????????????????????????????????????????? | | ?????????????????????????????????????????????????? | | ?????????????????????????????????????????????????? | +----------------------------------------------------+ Best States ------------- Heat Dissipation 25 Energy Generation 14 Energy Capacity 265 Matter Stores 300 Matter Capacity 300 Sight Range 16 Robot Scan Range 20 Terrain Scan Density 10 Armor Coverage 800 Evasion (%) 55 Targeting Accuracy 6 Item Schematics ----------------- None Robot Schematics ------------------ None Fabricated ------------ Nothing Repaired ---------- Nothing Studied --------- None Alien Tech Used ----------------- None Achievements -------------- None Challenges ------------ None Game ------ Seed SuperdenseFlightCannon Manual? 0 Play Time 00:23:13 Cumulative 46.4 hours Start 2025.11.20 @ 05:15:37 End 2025.11.20 @ 05:38:28 Sessions 1 Manual Loads 0 Difficulty Rogue Special Mode None Game No. 45 Rogue 20 Adventurer 18 Explorer 7 Win Type - Total 1 Types 1/0/0/0/0/0/0/0/0/0 Lore% 17 Gallery% 26 Achievement% 23 Wizard Run 0 Options --------- Layout 0 ASCII 0 Keyboard 1 Movement Numpad Keybinds 0 Fullscreen 1 Font 24/Smallcaps Map View 56x25 Zoom Use 19% Tactical HUD 1 Map Filters NONE Filters NONE Steam 1 RUN: f007a71c-f4a7-4464-a334-5f7c218f6993